bitfinex-derivatives/quotes_BTCF0:USTF0_20260314
["timestamp","ask_amount","ask_price","bid_price","bid_amount"]
[1773519556816,0.02042503,70771.0,70757.0,0.042392]
[1773519557018,0.042385,70769.0,70755.0,0.042393]
[1773519557328,0.042386,70768.0,70755.0,0.042393]
[1773519557726,0.043946,70768.0,70755.0,0.042393]
[1773519558318,0.042386,70768.0,70755.0,0.042393]
[1773519558523,0.043946,70768.0,70755.0,0.042393]
[1773519558843,0.042386,70768.0,70755.0,0.042393]
[1773519559031,0.043946,70768.0,70755.0,0.042393]
[1773519559328,0.042386,70768.0,70755.0,0.042393]
[1773519559530,0.043946,70768.0,70755.0,0.042393]
[1773519559826,0.042386,70768.0,70755.0,0.042393]
[1773519560015,0.043946,70768.0,70755.0,0.042393]
[1773519560218,0.02042503,70771.0,70751.0,0.00913309]
[1773519560219,0.042385,70769.0,70751.0,0.00913309]
[1773519560934,0.042384,70770.0,70751.0,0.00913309]
[1773519561133,0.042384,70770.0,70750.0,0.07379137]
[1773519561422,0.042384,70770.0,70757.0,0.042391]
[1773519561629,0.042384,70770.0,70758.0,0.042391]
[1773519562422,0.01125,70771.0,70758.0,0.042391]
[1773519562423,0.01125,70771.0,70760.0,0.07379137]
[1773519562927,0.053634,70771.0,70760.0,0.07379137]
[1773519563123,0.042384,70771.0,70760.0,0.07379137]
[1773519564630,0.042384,70771.0,70760.0,0.0738314]
[1773519568536,0.042382,70773.0,70760.0,0.1162204]
[1773519569727,0.00920584,70779.0,70760.0,0.0738314]
[1773519570734,0.04238,70777.0,70760.0,0.0738314]
[1773519570927,0.00920584,70779.0,70760.0,0.0738314]
[1773519571132,0.00920584,70779.0,70760.0,0.08319693]
[1773519571629,0.04238,70777.0,70764.0,0.042387]
[1773519572333,0.04238,70777.0,70764.0,0.043947]
[1773519574831,0.04238,70777.0,70764.0,0.04398703]
[1773519576833,0.04238,70777.0,70765.0,0.042387]
[1773519577240,0.05158484,70779.0,70765.0,0.042387]
[1773519577442,0.05158484,70779.0,70766.0,0.042386]
[1773519577443,0.042379,70779.0,70766.0,0.042386]
[1773519578242,0.042379,70778.0,70766.0,0.042386]
[1773519579336,0.00156,70779.0,70767.0,0.042386]
[1773519579936,0.00920584,70783.0,70767.0,0.042386]
[1773519580138,0.00156,70780.0,70767.0,0.042386]
[1773519580534,0.043939,70779.0,70767.0,4.003e-05]
[1773519581043,0.042379,70778.0,70767.0,4.003e-05]
[1773519598971,0.00991224,70781.0,70767.0,4.003e-05]
[1773519599365,0.00991224,70781.0,70770.0,0.07373624]
[1773519599969,0.01125,70788.0,70770.0,0.07373624]
[1773519600168,0.042374,70787.0,70774.0,0.042381]
[1773519600476,0.001,70781.0,70774.0,0.043941]
[1773519601569,0.01125,70788.0,70774.0,0.00156]
[1773519601970,0.01125,70788.0,70767.0,4.003e-05]
[1773519602171,0.00909225,70783.0,70769.0,0.042384]
[1773519602371,0.00909225,70783.0,70770.0,0.042384]
[1773519602674,0.00909225,70783.0,70770.0,0.04242403]
[1773519603879,0.00909225,70783.0,70770.0,0.11616027]
[1773519604176,0.05146925,70783.0,70770.0,0.11616027]
[1773519605881,0.042377,70783.0,70770.0,0.11616027]
[1773519606878,0.042377,70783.0,70771.0,0.042383]
[1773519612785,0.00909225,70781.0,70770.0,4.003e-05]
[1773519612982,0.00909225,70786.0,70767.0,0.00156]
[1773519613777,0.00909225,70780.0,70768.0,0.00156]
[1773519613972,0.05147225,70777.0,70764.0,0.042387]
[1773519614175,0.00909225,70777.0,70765.0,0.00156]
[1773519615385,0.042381,70775.0,70765.0,0.00156]
[1773519616085,0.042383,70772.0,70764.0,0.00156]
[1773519616478,0.042382,70774.0,70764.0,0.00156]
[1773519642399,0.05220599,70776.0,70764.0,0.00156]
[1773519644002,0.05220599,70776.0,70764.0,0.043947]
[1773519645894,0.042381,70775.0,70764.0,0.00156]
[1773519646296,0.00982499,70774.0,70764.0,0.00156]
[1773519648308,0.042382,70774.0,70764.0,0.00156]
[1773519648508,0.00982499,70773.0,70764.0,0.00156]
[1773519653112,0.00948621,70771.0,70755.0,0.25426163]
[1773519653310,0.00156,70778.0,70756.0,0.00156]
[1773519653514,0.00948621,70767.0,70756.0,0.00156]
[1773519653913,0.00948621,70767.0,70756.0,0.043952]
[1773519654212,0.00948621,70767.0,70757.0,0.042391]
[1773519662514,0.00948621,70766.0,70755.0,0.042393]
[1773519662719,0.00948621,70765.0,70756.0,0.00156]
[1773519663517,0.00948621,70765.0,70756.0,0.043952]
[1773519664716,0.00948621,70765.0,70756.0,0.042392]
[1773519664917,0.042394,70753.0,70740.0,0.07375527]
[1773519665115,0.042393,70755.0,70740.0,0.11615727]
[1773519665316,0.042393,70755.0,70743.0,0.00156]
[1773519665716,0.042392,70757.0,70744.0,0.042399]
[1773519666520,0.04395,70761.0,70747.0,0.07375527]
[1773519666720,0.20276595,70760.0,70747.0,0.07375527]
[1773519667020,0.20276595,70759.0,70747.0,0.07375527]
[1773519667225,0.04239,70760.0,70747.0,0.07375527]
[1773519673221,0.01125,70763.0,70748.0,0.00975674]
[1773519673414,0.01125,70763.0,70750.0,0.00975674]
[1773519673725,0.01125,70763.0,70752.0,0.042395]
[1773519674613,0.043947,70765.0,70752.0,0.042395]
[1773519674819,0.20257431,70764.0,70752.0,0.042395]
[1773519675025,0.20257431,70763.0,70752.0,0.042395]
[1773519675326,0.042387,70765.0,70752.0,0.042395]
[1773519675526,0.20257935,70764.0,70752.0,0.042395]
[1773519675824,0.20257935,70763.0,70752.0,0.042395]
[1773519676125,0.042388,70764.0,70752.0,0.042395]
[1773519676327,0.20258813,70763.0,70752.0,0.042395]
[1773519676633,0.042388,70764.0,70752.0,0.042395]
[1773519676924,0.20258813,70763.0,70752.0,0.042395]
[1773519677115,0.042388,70764.0,70752.0,0.042395]
[1773519677318,0.20259055,70763.0,70752.0,0.042395]
[1773519677518,0.042388,70764.0,70752.0,0.042395]
[1773519677725,0.2026003,70763.0,70752.0,0.042395]
[1773519677926,0.042388,70764.0,70752.0,0.042395]
[1773519678128,0.20260039,70763.0,70752.0,0.042395]
[1773519678321,0.042388,70764.0,70752.0,0.042395]
[1773519678521,0.20261718,70763.0,70752.0,0.042395]
[1773519678722,0.042388,70764.0,70752.0,0.042395]
[1773519678921,0.20261709,70763.0,70752.0,0.042395]
[1773519679124,0.042388,70764.0,70752.0,0.042395]
[1773519679324,0.20263583,70763.0,70752.0,0.042395]
[1773519679530,0.042388,70764.0,70752.0,0.042395]
[1773519679827,0.20263509,70763.0,70752.0,0.042395]
[1773519680028,0.042388,70764.0,70752.0,0.042395]
[1773519680331,0.2026352,70763.0,70752.0,0.042395]
[1773519680623,0.2026352,70763.0,70750.0,0.042396]
[1773519681028,0.2450232,70763.0,70750.0,0.042396]
[1773519681229,0.2026352,70762.0,70750.0,0.042396]
[1773519684633,0.2026352,70762.0,70751.0,0.042395]
[1773519696648,0.2026352,70762.0,70753.0,0.042394]
[1773519696850,0.01281,70772.0,70752.0,0.07375527]
[1773519697050,0.01281,70772.0,70760.0,0.07375527]
[1773519697550,0.02237351,70772.0,70760.0,0.07375527]
[1773519697749,0.06475651,70772.0,70760.0,0.07375527]
[1773519698753,0.05350651,70772.0,70760.0,0.07375527]
[1773519699948,0.05194651,70772.0,70760.0,0.11614527]
[1773519700145,0.042383,70772.0,70760.0,0.11614527]
[1773519704151,0.042383,70772.0,70760.0,0.04239]
[1773519705055,0.01112351,70776.0,70760.0,0.04239]
[1773519705056,0.00960374,70776.0,70764.0,0.042388]
[1773519705449,0.00960374,70776.0,70764.0,0.043948]
[1773519705947,0.00804374,70776.0,70764.0,0.043948]
[1773519708756,0.20537244,70775.0,70764.0,0.043948]
[1773519708956,0.20537244,70774.0,70764.0,0.043948]
[1773519709259,0.20537244,70773.0,70764.0,0.043948]
[1773519709460,0.20537244,70772.0,70764.0,0.043948]
[1773519709658,0.20537244,70771.0,70764.0,0.043948]
[1773519709859,0.00804374,70776.0,70764.0,0.043948]
[1773519710063,0.20535297,70775.0,70764.0,0.043948]
[1773519710256,0.20535297,70774.0,70764.0,0.043948]
[1773519710453,0.20535297,70773.0,70764.0,0.043948]
[1773519710760,0.20535297,70772.0,70764.0,0.043948]
[1773519711063,0.20535297,70771.0,70764.0,0.043948]
[1773519711264,0.20535297,70770.0,70764.0,0.043948]
[1773519711562,0.00804374,70776.0,70764.0,0.043948]
[1773519711763,0.19927071,70775.0,70764.0,0.043948]
[1773519711961,0.19927071,70774.0,70764.0,0.043948]
[1773519712160,0.19927071,70773.0,70764.0,0.043948]
[1773519712363,0.19927071,70772.0,70764.0,0.043948]
[1773519712661,0.19927071,70771.0,70764.0,0.043948]
[1773519712965,0.00804374,70776.0,70764.0,0.043948]
[1773519713152,0.19925785,70775.0,70764.0,0.043948]
[1773519713357,0.00804374,70776.0,70764.0,0.043948]
[1773519713358,0.19925785,70774.0,70764.0,0.043948]
[1773519713553,0.19925785,70773.0,70765.0,0.042386]
[1773519713865,0.19925785,70772.0,70766.0,0.042386]
[1773519714064,0.19925785,70771.0,70766.0,0.042386]
[1773519714263,0.042379,70779.0,70766.0,0.042386]
[1773519714459,0.1992388,70778.0,70766.0,0.042386]
[1773519714763,0.1992388,70777.0,70766.0,0.042386]
[1773519714964,0.1992388,70776.0,70766.0,0.042386]
[1773519715264,0.1992388,70775.0,70766.0,0.042386]
[1773519715460,0.1992388,70774.0,70766.0,0.042386]
[1773519715657,0.1992388,70773.0,70766.0,0.042386]
[1773519715863,0.1992388,70772.0,70766.0,0.042386]
[1773519716063,0.042379,70778.0,70766.0,0.042386]
[1773519716363,0.19923164,70777.0,70766.0,0.042386]
[1773519716565,0.19923164,70776.0,70766.0,0.042386]
[1773519716862,0.19923164,70775.0,70766.0,0.042386]
[1773519717055,0.19923164,70774.0,70766.0,0.04242603]
[1773519717251,0.19923164,70773.0,70766.0,0.04242603]
[1773519717462,0.19923164,70772.0,70766.0,0.04242603]
[1773519717663,0.042379,70778.0,70766.0,0.04242603]
[1773519717865,0.19922338,70777.0,70766.0,0.04242603]
[1773519718065,0.19922338,70776.0,70766.0,0.04242603]
[1773519718265,0.19922338,70775.0,70766.0,0.04242603]
[1773519718454,0.19922338,70774.0,70766.0,0.04242603]
[1773519718652,0.19922338,70773.0,70766.0,0.04242603]
[1773519718856,0.042379,70778.0,70766.0,0.04242603]
[1773519719152,0.19921926,70777.0,70766.0,0.04242603]
[1773519719358,0.19921926,70776.0,70766.0,0.04242603]
[1773519719566,0.19921926,70775.0,70766.0,0.04242603]
[1773519719766,0.19921926,70774.0,70766.0,0.04242603]
[1773519719966,0.19921926,70773.0,70766.0,0.04242603]
[1773519720265,0.19921694,70772.0,70766.0,0.04242603]
[1773519720466,0.042379,70778.0,70766.0,0.04242603]
[1773519720669,0.19921904,70777.0,70766.0,0.04242603]
[1773519720862,0.19921904,70776.0,70766.0,0.04242603]
[1773519721061,0.19921904,70775.0,70766.0,0.04242603]
[1773519721262,0.19921904,70774.0,70766.0,0.04242603]
[1773519721560,0.19921904,70773.0,70766.0,0.04242603]
[1773519721860,0.19921904,70772.0,70766.0,0.04242603]
[1773519722062,0.042379,70778.0,70766.0,0.04242603]
[1773519722368,0.19921918,70777.0,70766.0,0.04242603]
[1773519722667,0.19921918,70776.0,70766.0,0.04242603]
[1773519722867,0.19921918,70775.0,70766.0,0.04242603]
[1773519723068,0.19921918,70774.0,70766.0,0.04242603]
[1773519723272,0.19921918,70773.0,70766.0,0.04242603]
[1773519723470,0.19921918,70772.0,70766.0,0.04242603]
[1773519723671,0.042379,70778.0,70766.0,0.04242603]
[1773519723875,0.19923097,70777.0,70766.0,0.04242603]
[1773519724065,0.19923097,70776.0,70766.0,0.04242603]
[1773519724365,0.19923097,70775.0,70766.0,0.04242603]
[1773519724565,0.19923097,70774.0,70766.0,0.04242603]
[1773519724766,0.19923097,70773.0,70766.0,0.04242603]
[1773519725066,0.19923097,70772.0,70766.0,0.04242603]
[1773519725267,0.19923097,70771.0,70766.0,0.04242603]
[1773519725469,0.06287351,70781.0,70766.0,4.003e-05]
[1773519725669,0.1992536,70780.0,70766.0,4.003e-05]
[1773519725874,0.1992536,70779.0,70770.0,0.07373621]
[1773519726070,0.1992536,70778.0,70771.0,0.042383]
[1773519726263,0.1992536,70777.0,70771.0,0.042383]
[1773519726464,0.1992536,70776.0,70771.0,0.042383]
[1773519726670,0.01125,70781.0,70769.0,0.042384]
[1773519726868,0.01125,70781.0,70770.0,0.042384]
[1773519727373,0.042376,70783.0,70770.0,0.042384]
[1773519727572,0.042376,70783.0,70770.0,0.043944]
[1773519728469,0.00156,70784.0,70770.0,0.00156]
[1773519728972,0.00156,70784.0,70770.0,0.00160003]
[1773519729372,0.00156,70784.0,70770.0,0.07533624]
[1773519729774,0.042377,70783.0,70771.0,0.042383]
[1773519729974,0.05162251,70783.0,70771.0,0.042383]
[1773519730174,0.042377,70782.0,70770.0,0.00160003]
[1773519730582,0.05162251,70782.0,70770.0,0.00160003]
[1773519730773,0.05162251,70782.0,70770.0,0.04398403]
[1773519731173,0.00924551,70782.0,70770.0,0.04398403]
[1773519732982,0.00924551,70782.0,70771.0,0.042383]
[1773519737280,0.043936,70784.0,70771.0,0.042383]
[1773519741492,0.01125,70790.0,70779.0,0.042378]
[1773519741696,0.01125,70790.0,70780.0,0.042377]
[1773519742396,0.00929053,70793.0,70780.0,0.043937]
[1773519742799,0.05166153,70793.0,70780.0,0.043937]
[1773519743597,0.05166153,70793.0,70781.0,0.00156]
[1773519743899,0.042371,70792.0,70781.0,0.00156]
[1773519744490,0.042371,70792.0,70780.0,0.042377]
[1773519744785,0.042371,70792.0,70781.0,0.00156]
[1773519744985,0.042371,70792.0,70780.0,0.04241703]
[1773519745192,0.042371,70792.0,70781.0,0.00156]
[1773519745992,0.042371,70792.0,70780.0,0.04241703]
[1773519746194,0.042371,70792.0,70781.0,0.00156]
[1773519747008,0.042371,70792.0,70780.0,0.04241703]
[1773519747205,0.042371,70792.0,70781.0,0.00156]
[1773519748110,0.042371,70792.0,70770.0,0.08335624]
[1773519748111,0.00929053,70783.0,70779.0,0.00156]
[1773519748301,0.00929053,70783.0,70776.0,0.00156]
[1773519749210,0.042375,70785.0,70776.0,0.00156]
[1773519750008,0.042375,70785.0,70776.0,0.00256]
[1773519751507,0.042375,70785.0,70776.0,0.00156]
[1773519752513,0.05166453,70787.0,70776.0,0.00156]
[1773519752713,0.042375,70786.0,70776.0,0.00156]
[1773519753710,0.042376,70784.0,70776.0,0.00156]
[1773519757110,0.042375,70786.0,70776.0,0.00156]
[1773519762114,0.05166553,70786.0,70776.0,0.00156]
[1773519762320,0.00929053,70785.0,70775.0,0.00156]
[1773519762522,0.08497621,70800.0,70775.0,0.00156]
[1773519762721,0.00929053,70799.0,70775.0,0.00156]
[1773519762920,0.00929053,70797.0,70775.0,0.00156]
[1773519763121,0.042375,70786.0,70775.0,0.00156]
[1773519763323,0.042375,70786.0,70774.0,0.00156]
[1773519764710,0.05166553,70786.0,70774.0,0.00156]
[1773519781034,0.00974875,70785.0,70774.0,0.043941]
[1773519781935,0.00974875,70785.0,70775.0,0.042381]
[1773519788138,0.043934,70788.0,70775.0,0.042381]
[1773519793143,0.043934,70788.0,70776.0,0.04238]
[1773519793343,0.043934,70788.0,70776.0,0.04242002]
[1773519796040,0.00156,70788.0,70778.0,0.042379]
[1773519796237,0.00156,70788.0,70779.0,0.042378]
[1773519797551,0.042372,70791.0,70779.0,0.042378]
[1773519797755,0.00156,70788.0,70779.0,0.042378]
[1773519799156,0.042372,70791.0,70779.0,0.042378]
[1773519799545,0.00156,70790.0,70779.0,0.042378]
[1773519800055,0.00156,70789.0,70780.0,0.042378]
[1773519800258,0.00156,70789.0,70780.0,4.002e-05]
[1773519800547,0.042369,70795.0,70780.0,4.002e-05]
[1773519800548,0.053606,70800.0,70786.0,0.042374]
[1773519800749,0.00156,70799.0,70786.0,4.002e-05]
[1773519801154,0.01124,70800.0,70786.0,4.002e-05]
[1773519801353,0.00156,70798.0,70786.0,4.002e-05]
[1773519801757,0.00156,70797.0,70786.0,4.002e-05]
[1773519801948,0.00156,70797.0,70786.0,0.04241402]
[1773519802256,0.00156,70796.0,70786.0,0.04241402]
[1773519802755,0.00156,70796.0,70786.0,4.002e-05]
[1773519805947,0.063388,70800.0,70786.0,4.002e-05]
[1773519806255,0.00156,70796.0,70786.0,0.04241402]
[1773519810361,0.00156,70796.0,70787.0,0.042373]
[1773519810559,0.053606,70800.0,70788.0,0.042373]
[1773519810764,0.00156,70799.0,70788.0,0.04241302]
[1773519816469,0.043927,70799.0,70788.0,0.04241302]
[1773519822978,0.00156,70799.0,70789.0,0.042372]
[1773519823475,0.00156,70798.0,70789.0,0.042372]
[1773519824279,0.00156,70798.0,70788.0,4.002e-05]
[1773519835896,0.481479,70803.0,70788.0,0.04241302]
[1773519835897,0.042365,70801.0,70788.0,0.04241302]
[1773519836102,0.00156,70799.0,70788.0,0.04241302]
[1773519837000,0.043927,70799.0,70788.0,4.002e-05]
[1773519844509,0.00156,70798.0,70788.0,4.002e-05]
[1773519845106,0.01019035,70797.0,70772.0,0.01009522]
[1773519845307,0.01019035,70786.0,70769.0,0.17056158]
[1773519845515,0.01019035,70786.0,70769.0,0.00156]
[1773519845699,0.01019035,70786.0,70770.0,0.07369814]
[1773519846104,0.00156,70788.0,70770.0,0.07369814]
[1773519846105,0.00156,70788.0,70780.0,0.042378]
[1773519849315,0.00156,70788.0,70771.0,0.00156]
[1773519850115,0.161054,70803.0,70779.0,0.01009522]
[1773519850310,0.161054,70803.0,70792.0,0.04237]
[1773519850504,0.161054,70803.0,70783.0,0.042376]
[1773519850505,0.01019035,70801.0,70783.0,0.042376]
[1773519850818,0.05255835,70798.0,70784.0,0.042375]
[1773519851006,0.01175035,70797.0,70784.0,0.042375]
[1773519851416,0.01175035,70797.0,70785.0,0.042375]
[1773519857322,0.01175035,70797.0,70783.0,0.042376]
[1773519858936,0.05411835,70797.0,70783.0,0.042376]
[1773519859131,0.042369,70796.0,70783.0,0.042376]
[1773519860131,0.042369,70796.0,70784.0,0.042375]
[1773519860732,0.042369,70795.0,70783.0,0.042376]
[1773519861234,0.042369,70795.0,70782.0,0.00156]
[1773519861235,0.05255935,70795.0,70781.0,0.042377]
[1773519862533,0.01019035,70795.0,70781.0,0.042377]
[1773519864030,0.05255935,70795.0,70781.0,0.042377]
[1773519864333,0.042369,70795.0,70782.0,0.042376]
[1773519872439,0.04237,70794.0,70782.0,0.042376]
[1773519877543,0.01473249,70796.0,70777.0,0.16900158]
[1773519877842,0.042371,70793.0,70780.0,0.042378]
[1773519880637,0.042374,70787.0,70775.0,0.042381]
[1773519880842,0.042374,70787.0,70776.0,0.00156]
[1773519881043,0.042373,70790.0,70777.0,0.04238]
[1773519881242,0.043933,70790.0,70777.0,0.04238]
[1773519882552,0.00156,70790.0,70776.0,0.00156]
[1773519884053,0.042374,70788.0,70776.0,0.00156]
[1773519884555,0.042374,70788.0,70776.0,0.04394]
[1773519885252,0.00156,70790.0,70772.0,0.16900158]
[1773519885253,0.01629249,70790.0,70772.0,0.16900158]
[1773519885556,0.01473249,70789.0,70770.0,0.16900158]
[1773519885758,0.01473249,70789.0,70768.0,0.16900158]
[1773519886955,0.042377,70782.0,70770.0,0.042384]
[1773519888356,0.042377,70782.0,70766.0,0.00156]
[1773519888357,0.00156,70784.0,70767.0,0.042386]
[1773519889557,0.042378,70781.0,70768.0,0.042385]
[1773519891253,0.00156,70784.0,70766.0,0.043946]
[1773519891459,0.042379,70780.0,70767.0,0.042385]
[1773519892059,0.042379,70779.0,70767.0,0.042385]
[1773519892865,0.04238,70777.0,70767.0,0.001]
[1773519894155,0.04238,70777.0,70766.0,0.00156]
[1773519894156,0.01454994,70778.0,70755.0,0.16900158]
[1773519894358,0.042384,70770.0,70750.0,0.08780438]
[1773519894667,0.01610994,70770.0,70751.0,0.00156]
[1773519894863,0.00156,70770.0,70752.0,0.00156]
[1773519895164,0.042387,70765.0,70752.0,0.00156]
[1773519895560,0.042387,70765.0,70752.0,0.043954]
[1773519895760,0.042386,70767.0,70755.0,0.01124]
[1773519896264,0.042385,70769.0,70755.0,0.053632]
[1773519898267,0.042385,70768.0,70755.0,0.053632]
[1773519898659,0.01454994,70768.0,70742.0,0.16900158]
[1773519898963,0.01454994,70768.0,70740.0,0.08787695]
[1773519898964,0.05694194,70758.0,70745.0,0.042398]
[1773519899168,0.07533071,70770.0,70745.0,0.042398]
[1773519899169,0.01454994,70757.0,70745.0,0.042398]
[1773519899369,0.01454994,70757.0,70743.0,0.00156]
[1773519899370,0.01454994,70757.0,70746.0,0.042398]
[1773519899567,0.01454994,70757.0,70754.0,0.01125]
[1773519899870,0.04239,70760.0,70746.0,0.042398]
[1773519900071,0.04239,70760.0,70747.0,0.042397]
[1773519900368,0.042382,70774.0,70751.0,0.01410624]
[1773519900673,0.042382,70774.0,70750.0,0.07377071]
[1773519900674,0.043943,70773.0,70761.0,0.042389]
[1773519902372,0.01125,70768.0,70761.0,0.042389]
[1773519903074,0.01125,70768.0,70762.0,0.042388]
[1773519903075,0.01281,70768.0,70762.0,0.042388]
[1773519903466,0.01125,70768.0,70762.0,0.042388]
[1773519903667,0.01281,70768.0,70762.0,0.042388]
[1773519903865,0.00156,70768.0,70762.0,0.042388]
[1773519904771,0.042382,70775.0,70762.0,0.042388]
[1773519904965,0.043942,70774.0,70764.0,0.01125]
[1773519905577,0.00156,70773.0,70764.0,0.01125]
[1773519905876,0.01125,70766.0,70764.0,0.01125]
[1773519906777,0.00156,70768.0,70760.0,0.04239]
[1773519907379,0.00156,70768.0,70764.0,0.01125]
[1773519908773,0.00156,70769.0,70764.0,0.01125]
[1773519910979,0.01125,70780.0,70766.0,0.042386]
[1773519911179,0.00156,70779.0,70766.0,0.042386]
[1773519911773,0.043939,70778.0,70766.0,0.042386]
[1773519912083,0.00156,70777.0,70766.0,0.042386]
[1773519912578,0.00156,70776.0,70766.0,0.042386]
[1773519912979,0.042379,70778.0,70766.0,0.042386]
[1773519913280,0.00156,70777.0,70766.0,0.042386]
[1773519913482,0.042379,70778.0,70766.0,0.042386]
[1773519913680,0.00156,70777.0,70766.0,0.042386]
[1773519913981,0.042379,70778.0,70766.0,0.042386]
[1773519914480,0.00156,70777.0,70766.0,0.042386]
[1773519927695,0.04394,70777.0,70764.0,0.06760136]
[1773519931798,0.00156,70777.0,70766.0,0.042386]
[1773519932602,0.04394,70777.0,70766.0,0.042386]
[1773519933403,0.00156,70776.0,70766.0,0.05635036]
[1773519934500,0.00156,70776.0,70766.0,0.01396436]
[1773519934701,0.00156,70776.0,70764.0,0.053637]
[1773519943704,0.00156,70776.0,70764.0,0.06760136]
[1773519950611,0.00156,70776.0,70765.0,0.01366133]
[1773519952719,0.00156,70775.0,70765.0,0.01366133]
[1773519954012,0.00156,70775.0,70766.0,0.01361778]
[1773519957511,0.01125,70780.0,70769.0,0.05600178]
[1773519957717,0.00156,70779.0,70771.0,0.05600078]
[1773519961717,0.00156,70779.0,70772.0,0.01361778]
[1773519963624,0.042376,70783.0,70772.0,0.01361778]
[1773519963824,0.00156,70782.0,70772.0,0.01361778]
[1773519965425,0.042376,70783.0,70772.0,0.01361778]
[1773519965623,0.00156,70782.0,70772.0,0.01361778]
[1773519974432,0.00156,70781.0,70772.0,0.01361778]
[1773519978738,0.042376,70783.0,70772.0,0.01361778]
[1773519979034,0.00156,70780.0,70772.0,0.01361778]
[1773519980334,0.042376,70783.0,70772.0,0.01361778]
[1773519980335,0.038376,70783.0,70772.0,0.01361778]
[1773519980640,0.00156,70782.0,70773.0,0.01361778]
[1773519981735,0.00156,70781.0,70773.0,0.01361778]
[1773519982339,0.00156,70781.0,70774.0,0.01248814]
[1773519983227,0.00156,70781.0,70774.0,0.00920747]
[1773519983434,0.00156,70782.0,70774.0,0.00920747]
[1773519985435,0.042375,70785.0,70774.0,0.05158847]
[1773519985641,0.00156,70784.0,70774.0,0.05158847]
[1773519986040,0.00156,70783.0,70774.0,0.05158847]
[1773519986532,0.00156,70782.0,70774.0,0.05158847]
[1773519992543,0.00156,70783.0,70774.0,0.05158847]
[1773519993044,0.042375,70785.0,70774.0,0.05158847]
[1773519993244,0.00156,70784.0,70774.0,0.05158847]
[1773519993647,0.00156,70783.0,70774.0,0.05158847]
[1773519994045,0.042375,70785.0,70774.0,0.05158847]
[1773519994247,0.00156,70784.0,70774.0,0.05158847]
[1773519994546,0.042375,70785.0,70774.0,0.05158847]
[1773519994746,0.00156,70784.0,70774.0,0.05158847]
[1773519995143,0.00156,70783.0,70774.0,0.05158847]
[1773519997848,0.042374,70788.0,70774.0,0.00920747]
[1773519998248,0.00156,70787.0,70771.0,0.01248814]
[1773519998642,0.042374,70788.0,70771.0,0.01248814]
[1773519998843,0.00156,70786.0,70771.0,0.01248814]
[1773519999247,0.042374,70788.0,70771.0,0.01248814]
[1773519999449,0.00156,70785.0,70771.0,0.01248814]
[1773519999838,0.00156,70784.0,70771.0,0.01248814]
[1773520000148,0.00156,70784.0,70776.0,0.05486814]
[1773520000347,0.00156,70784.0,70776.0,0.04238]
[1773520000548,0.00156,70786.0,70778.0,0.042379]
[1773520001452,0.01125,70790.0,70778.0,0.042379]
[1773520001645,0.00156,70789.0,70778.0,0.042379]
[1773520001949,0.053622,70790.0,70778.0,0.042379]
[1773520002346,0.00156,70789.0,70778.0,0.05486714]
[1773520008855,0.00156,70788.0,70778.0,0.05486714]
[1773520009357,0.00156,70787.0,70778.0,0.05486714]
[1773520009757,0.042372,70790.0,70778.0,0.05486714]
[1773520010058,0.00156,70789.0,70778.0,0.05486714]
[1773520010361,0.00156,70788.0,70778.0,0.05486714]
[1773520010555,0.00156,70788.0,70779.0,0.01249845]
[1773520010748,0.042372,70790.0,70779.0,0.01249845]
[1773520010954,0.00156,70789.0,70779.0,0.01249845]
[1773520011960,0.043933,70789.0,70779.0,0.01249845]
[1773520017777,0.00156,70789.0,70779.0,0.01249845]
[1773520018079,0.042372,70791.0,70779.0,0.01249845]
[1773520018282,0.00156,70790.0,70779.0,0.01249845]
[1773520018582,0.043932,70790.0,70779.0,0.01249845]
[1773520019377,0.042371,70792.0,70780.0,0.01261238]
[1773520019578,0.00010904,70791.0,70773.0,0.01261238]
[1773520019782,0.00156,70790.0,70773.0,0.01261238]
[1773520020176,0.04237,70794.0,70773.0,0.01261238]
[1773520020480,0.03838607,70796.0,70785.0,0.042375]
[1773520020775,0.00156,70795.0,70783.0,0.042376]
[1773520020977,0.00156,70794.0,70780.0,0.01261238]
[1773520022076,0.00156,70794.0,70782.0,0.042377]
[1773520024689,0.00156,70794.0,70782.0,0.05498938]
[1773520024875,0.00156,70794.0,70784.0,0.05498738]
[1773520025279,0.08075507,70796.0,70784.0,0.05498738]
[1773520025476,0.00156,70795.0,70784.0,0.05498738]
[1773520025881,0.08075507,70796.0,70784.0,0.05498738]
[1773520026289,0.00156,70795.0,70784.0,0.05498738]
[1773520026686,0.00156,70794.0,70784.0,0.05498738]
[1773520027288,0.08075507,70796.0,70784.0,0.05498738]
[1773520027289,0.03838607,70796.0,70784.0,0.01261238]
[1773520027788,0.00156,70795.0,70786.0,0.05498638]
[1773520027989,0.00156,70795.0,70786.0,0.0550264]
[1773520028181,0.00156,70794.0,70786.0,0.0550264]
[1773520028581,0.03838607,70796.0,70786.0,0.0550264]
[1773520028784,0.00156,70793.0,70786.0,0.0550264]
[1773520029090,0.03838607,70796.0,70786.0,0.0126524]
[1773520029296,0.00156,70792.0,70786.0,0.0126524]
[1773520031289,0.00156,70792.0,70786.0,4.002e-05]
[1773520034893,0.03838607,70796.0,70786.0,4.002e-05]
[1773520035194,0.00156,70795.0,70786.0,4.002e-05]
[1773520039399,0.03838607,70796.0,70787.0,0.042374]
[1773520039700,0.00156,70795.0,70786.0,0.04241402]
[1773520040098,0.03838607,70796.0,70786.0,0.04241402]
[1773520040299,0.00156,70795.0,70786.0,0.04241402]
[1773520041104,0.03838607,70796.0,70786.0,0.04241402]
[1773520041300,0.00156,70795.0,70786.0,0.04241402]
[1773520042105,0.03838607,70796.0,70786.0,0.04241402]
[1773520042298,0.00156,70795.0,70786.0,0.04241402]
[1773520043191,0.03838607,70796.0,70786.0,0.04241402]
[1773520043399,0.00156,70795.0,70786.0,0.04241402]
[1773520043697,0.03838607,70796.0,70786.0,0.04241402]
[1773520043903,0.00156,70795.0,70786.0,0.04241402]
[1773520044200,0.03838607,70796.0,70787.0,0.042373]
[1773520044504,0.00156,70795.0,70787.0,0.042373]
[1773520051093,0.00156,70796.0,70787.0,0.042373]
[1773520069620,0.042367,70799.0,70787.0,0.042373]
[1773520069818,0.00156,70796.0,70787.0,0.042373]